bitfinex-derivatives/quotes_ETHF0:USTF0_20260128
["timestamp","ask_amount","ask_price","bid_price","bid_amount"]
[1769623778090,0.22866314,3012.9,3012.0,0.16622]
[1769623782697,0.22866314,3012.9,3012.1,0.21964415]
[1769623784888,0.22866314,3013.3,3012.1,0.21964415]
[1769623785093,0.22866314,3013.3,3012.2,0.21964415]
[1769623785896,0.22866314,3013.3,3012.1,0.16622]
[1769623785897,0.22866314,3013.3,3012.3,0.21964415]
[1769623786597,0.00339756,3013.4,3011.3,0.00319228]
[1769623786598,0.00339756,3013.4,3012.4,0.38584415]
[1769623786792,0.00339756,3013.4,3012.5,0.21964415]
[1769623788103,0.2320607,3013.4,3012.5,0.21964415]
[1769623790102,0.00339756,3013.4,3012.5,0.21964415]
[1769623793500,0.2320607,3013.4,3012.5,0.21964415]
[1769623793699,0.00339756,3013.4,3012.5,0.21964415]
[1769623796897,0.00339756,3013.4,3012.5,0.38583415]
[1769623797098,0.00339756,3013.4,3012.6,0.19943567]
[1769623797306,5.14926789,3014.5,3013.3,0.36558567]
[1769623797499,4.09586969,3014.4,3013.4,0.19943567]
[1769623797700,0.20769791,3014.2,3013.3,0.16615]
[1769623798205,0.21186387,3014.2,3013.3,0.16615]
[1769623798407,0.21186387,3014.2,3013.1,0.19943567]
[1769623798794,0.00416596,3014.2,3013.1,0.19943567]
[1769623799410,0.00416596,3014.2,3013.1,0.36559567]
[1769623799604,0.00416596,3014.2,3013.3,0.19943567]
[1769623800300,0.20769791,3014.8,3013.5,0.19943567]
[1769623800612,3.8306742,3014.7,3013.6,0.19943567]
[1769623800806,3.62297629,3014.6,3013.6,0.19943567]
[1769623801003,0.20769791,3014.4,3012.9,0.19943567]
[1769623801309,0.20769791,3014.1,3012.9,0.00281989]
[1769623801809,0.20769791,3014.1,3012.9,0.20225556]
[1769623803909,0.20769791,3013.9,3012.9,0.00281989]
[1769623806008,0.20769791,3013.9,3012.9,0.20225556]
[1769623809712,1.26705558,3013.7,3012.9,0.20225556]
[1769623810010,0.20769791,3013.4,3012.9,0.00281989]
[1769623810210,0.20769791,3013.2,3012.7,3.323]
[1769623811315,0.20769791,3013.2,3012.7,3.32538375]
[1769623811516,1.26705558,3013.5,3012.7,3.32538375]
[1769623811708,1.05935767,3013.7,3012.8,0.19943567]
[1769623811907,0.20769791,3013.8,3012.9,0.19943567]
[1769623812202,0.20769791,3014.1,3013.1,0.19943567]
[1769623813707,0.21201254,3014.4,3013.2,0.19943567]
[1769623814409,0.00431463,3014.4,3013.3,0.36558567]
[1769623814807,0.00431463,3014.4,3013.4,0.19943567]
[1769623815008,0.21201254,3014.4,3013.4,0.19943567]
[1769623815705,0.00431463,3014.4,3013.6,0.19943567]
[1769623816016,0.21201254,3014.4,3013.5,0.36557567]
[1769623817307,0.20769791,3015.3,3013.8,0.19943567]
[1769623817510,0.20769791,3015.1,3013.8,0.19943567]
[1769623817705,0.20769791,3014.9,3013.8,0.19943567]
[1769623817914,0.20769791,3014.7,3013.8,0.19943567]
[1769623818121,0.20769791,3014.7,3013.7,0.16613]
[1769623818415,0.21016868,3014.7,3013.7,0.16613]
[1769623818812,0.21016868,3014.7,3013.7,0.36556567]
[1769623819410,0.21016868,3014.7,3013.8,0.19943567]
[1769623819612,0.00247077,3014.7,3013.8,0.19943567]
[1769623821110,0.21016868,3014.7,3013.8,0.19943567]
[1769623822019,0.21016868,3014.7,3013.7,0.16613]
[1769623822719,0.21016868,3014.7,3013.5,0.19943567]
[1769623830526,0.21016868,3014.7,3013.6,0.18123226]
[1769623831824,0.00247077,3014.7,3013.6,0.34736226]
[1769623832026,0.18720018,3014.5,3013.1,0.18123226]
[1769623832225,0.18720018,3014.5,3013.1,0.34739226]
[1769623832428,0.18720018,3014.5,3012.8,0.18123226]
[1769623833426,0.18720018,3014.5,3012.9,0.18123226]
[1769623834128,0.18720018,3014.5,3013.0,0.18123226]
[1769623834332,0.18720018,3014.5,3013.1,0.18123226]
[1769623834637,0.18720018,3014.5,3013.2,0.18123226]
[1769623839526,0.18720018,3014.0,3013.1,0.16616]
[1769623840833,0.18720018,3014.0,3013.1,1.22539604]
[1769623841131,0.18720018,3014.0,3013.1,1.4066283]
[1769623841521,0.18720018,3014.0,3013.1,0.34739226]
[1769623846337,0.18720018,3014.0,3013.2,0.18123226]
[1769623846537,0.18720018,3014.2,3013.2,0.18123226]
[1769623847336,0.00247077,3014.7,3013.3,0.18123226]
[1769623847535,0.18720018,3014.5,3013.4,0.18123226]
[1769623847735,0.18720018,3014.5,3013.5,0.18123226]
[1769623848438,0.18720018,3014.5,3013.6,0.18123226]
[1769623848834,0.00247077,3014.7,3013.6,0.18123226]
[1769623849138,0.18967095,3014.7,3013.6,0.18123226]
[1769623850936,0.18720018,3014.5,3013.0,0.16617]
[1769623851439,0.18720018,3014.3,3013.0,0.34740226]
[1769623851839,0.18720018,3014.2,3012.7,0.18361601]
[1769623852040,0.18720018,3014.0,3012.7,0.00238375]
[1769623852342,0.18720018,3013.8,3012.7,0.00238375]
[1769623852642,0.18720018,3013.8,3012.7,0.18361601]
[1769623853737,0.18720018,3013.8,3012.8,0.18123226]
[1769623854334,0.18720018,3014.6,3012.8,0.18123226]
[1769623854642,0.18720018,3014.4,3012.8,0.18123226]
[1769623854845,0.15953618,3014.2,3012.8,0.18123226]
[1769623855045,3.97250759,3014.3,3012.8,0.18123226]
[1769623855046,0.15953618,3014.1,3012.8,0.18123226]
[1769623855338,0.15953618,3014.6,3013.2,0.16548608]
[1769623855542,0.15953618,3014.4,3013.2,0.16548608]
[1769623857339,0.15953618,3014.4,3013.3,0.16548608]
[1769623857538,0.15953618,3014.4,3013.0,1.58838338]
[1769623857539,0.15953618,3014.4,3013.5,0.16548608]
[1769623857739,0.16200695,3014.7,3013.5,0.16548608]
[1769623858839,0.58964864,3014.6,3013.5,0.16548608]
[1769623859039,0.15953618,3014.6,3013.5,0.16548608]
[1769623861047,0.15953618,3014.4,3013.1,0.16548608]
[1769623861848,0.15953618,3014.2,3013.0,1.948]
[1769623862149,0.15953618,3014.0,3013.0,1.948]
[1769623862344,0.15953618,3014.0,3012.9,0.16617]
[1769623863049,0.15953618,3013.8,3012.9,0.16617]
[1769623864046,0.15953618,3013.8,3012.9,0.33165608]
[1769623864347,0.15953618,3014.4,3013.0,0.16548608]
[1769623864553,0.15953618,3014.2,3013.0,0.16548608]
[1769623864752,0.58977507,3014.1,3013.0,0.16548608]
[1769623864953,3.97203115,3014.0,3013.0,0.16548608]
[1769623865154,0.15953618,3014.6,3013.1,0.16548608]
[1769623865351,0.15953618,3014.4,3013.1,0.16548608]
[1769623865551,4.13151939,3014.3,3013.1,0.16548608]
[1769623865744,3.97198321,3014.2,3013.1,0.16548608]
[1769623865947,0.43021942,3014.1,3013.1,0.16548608]
[1769623866148,0.15953618,3014.3,3013.1,0.16548608]
[1769623866346,3.97196038,3014.2,3013.1,0.16548608]
[1769623866543,0.15953618,3014.3,3013.3,0.16548608]
[1769623866748,0.16200695,3014.7,3013.5,0.16548608]
[1769623866949,3.97163772,3014.6,3013.5,0.16548608]
[1769623867146,3.97163772,3014.5,3013.5,0.16548608]
[1769623867345,3.5414412,3014.4,3013.5,0.16548608]
[1769623867654,0.15953618,3014.5,3013.5,0.16548608]
[1769623867956,0.15953618,3014.3,3013.0,0.16478564]
[1769623868250,0.15953618,3014.1,3013.0,0.16478564]
[1769623870144,0.15953618,3014.4,3013.1,0.16068136]
[1769623870350,0.15953618,3014.4,3013.4,0.16068136]
[1769623870759,0.16200695,3014.7,3013.4,0.16068136]
[1769623871055,0.15953618,3014.5,3013.4,0.16068136]
[1769623871258,3.62939194,3014.4,3013.4,0.16068136]
[1769623871460,0.15953618,3014.5,3013.4,0.16068136]
[1769623871654,3.6292547,3014.4,3013.4,0.16068136]
[1769623871856,0.15953618,3014.5,3013.4,0.16068136]
[1769623872050,3.6292547,3014.4,3013.4,0.16068136]
[1769623872246,0.00247077,3014.7,3013.4,0.16068136]
[1769623872452,3.62911004,3014.6,3013.4,0.16068136]
[1769623872651,3.62911004,3014.5,3013.4,0.16068136]
[1769623872949,3.62911004,3014.4,3013.4,0.16068136]
[1769623873153,0.15953618,3014.6,3013.4,0.16068136]
[1769623873452,3.62897884,3014.5,3013.4,0.16068136]
[1769623873756,3.62897884,3014.4,3013.4,0.16068136]
[1769623873957,0.15953618,3014.6,3013.4,0.16068136]
[1769623874159,3.62897631,3014.5,3013.4,0.16068136]
[1769623874357,0.15953618,3014.3,3013.4,0.16068136]
[1769623874662,0.15953618,3014.3,3013.3,0.16615]
[1769623875159,0.15953618,3014.3,3013.3,0.31938366]
[1769623875557,0.15953618,3014.3,3013.4,0.15323366]
[1769623878464,0.15953618,3014.6,3013.4,0.15323366]
[1769623878870,0.15953618,3014.6,3013.5,0.14802952]
[1769623879562,0.15953618,3014.6,3013.5,0.31416952]
[1769623879769,0.15953618,3014.6,3013.7,0.14802952]
[1769623881873,0.00247077,3014.7,3013.8,0.14610046]
[1769623882368,0.16200695,3014.7,3013.8,0.14610046]
[1769623885980,0.16200695,3014.7,3013.7,0.16613]
[1769623886570,0.16200695,3014.7,3013.5,0.1402687]
[1769623886776,0.16200695,3014.7,3013.2,0.3064287]
[1769623887277,0.16200695,3014.7,3013.3,0.30333029]
[1769623887578,0.16200695,3014.7,3013.4,0.16614]
[1769623887868,0.16200695,3014.7,3013.4,0.30327692]
[1769623893579,0.13927982,3014.5,3013.1,0.13062934]
[1769623894072,0.13927982,3014.5,3013.3,0.12943065]
[1769623897976,0.13927982,3014.5,3013.4,0.12613927]
[1769623899687,0.00247077,3014.7,3013.5,0.12566849]
[1769623899875,4.06699826,3014.6,3013.5,0.29179849]
[1769623900184,0.14175059,3014.7,3013.9,0.12563089]
[1769623900480,0.13927982,3015.0,3013.9,0.12563089]
[1769623900674,3.63632443,3014.9,3014.0,0.12563089]
[1769623900875,0.13927982,3015.0,3014.0,0.12563089]
[1769623901074,3.63629173,3014.9,3014.0,0.12563089]
[1769623901274,0.13927982,3015.0,3014.0,0.12563089]
[1769623901483,0.13927982,3015.3,3014.2,0.12636962]
[1769623901677,0.13927982,3015.8,3014.5,0.12636962]
[1769623901874,0.13927982,3015.6,3014.5,0.12636962]
[1769623902071,4.20523463,3015.5,3014.5,0.12636962]
[1769623902281,0.13927982,3015.5,3014.5,0.12636962]
[1769623902485,0.14196388,3015.5,3014.5,0.12636962]
[1769623904183,0.00268406,3015.5,3014.7,0.12692621]
[1769623909375,0.14196388,3015.5,3014.4,0.12582875]
[1769623909580,0.14196388,3015.5,3014.1,0.12582875]
[1769623911188,0.14196388,3015.5,3014.2,0.1246306]
[1769623912890,0.14196388,3015.5,3014.3,0.12435189]
[1769623913093,0.14196388,3015.5,3014.4,0.12435189]
[1769623913292,0.00268406,3015.5,3014.5,0.29043189]
[1769623913486,0.00268406,3015.5,3014.6,0.12435189]
[1769623914294,0.00268406,3015.5,3014.7,0.12431998]
[1769623921094,0.00268406,3015.5,3014.7,0.29038998]
[1769623921489,0.00268406,3015.5,3014.8,0.12408633]
[1769623922499,0.13878329,3015.9,3014.8,0.12408633]
[1769623923596,0.14225446,3015.9,3014.8,0.12408633]
[1769623924198,0.14225446,3015.9,3014.9,0.29044821]
[1769623924392,0.14225446,3015.9,3015.0,0.12438821]
[1769623930204,0.14225446,3015.9,3014.9,0.00346363]
[1769623930904,0.14225446,3015.9,3014.9,0.12561497]
[1769623931201,0.14225446,3015.9,3014.9,0.00346363]
[1769623931600,0.14225446,3015.9,3014.9,1.0612207]
[1769623932103,0.14225446,3015.9,3014.9,1.18334654]
[1769623934304,0.14225446,3015.9,3015.1,1.05775707]
[1769623936504,0.14225446,3015.9,3015.1,1.17912684]
[1769623939307,0.14225446,3015.9,3015.1,0.12136977]
[1769623939507,0.14225446,3015.9,3014.9,1.18375689]
[1769623939710,0.14225446,3015.9,3015.0,0.12253619]
[1769623939903,0.14225446,3015.9,3015.1,1.05775707]
[1769623940209,0.14225446,3015.9,3015.0,0.12253619]
[1769623941110,0.30826446,3015.9,3014.9,0.00346363]
[1769623941302,0.13878329,3015.3,3014.3,0.1226978]
[1769623941605,0.13878329,3015.8,3014.9,0.1226978]
[1769623941808,4.04037936,3015.7,3014.9,0.1226978]
[1769623942010,4.04037936,3015.6,3014.9,0.1226978]
[1769623942210,0.13878329,3015.8,3014.9,0.1226978]
[1769623942511,4.17937716,3015.7,3014.9,0.12570609]
[1769623942712,4.04059387,3015.6,3014.9,0.12570609]
[1769623942911,0.13878329,3015.7,3014.9,0.12570609]
[1769623943211,4.04061401,3015.6,3014.9,0.12570609]
[1769623943511,0.13878329,3015.7,3014.9,0.12570609]
[1769623943714,0.13878329,3015.7,3015.0,1.17892908]
[1769623944710,0.00347117,3015.9,3015.1,0.12090341]
[1769623945013,0.00347117,3015.9,3015.2,1.17866048]
[1769623945415,0.14432426,3016.2,3015.6,1.17863885]
[1769623945601,4.04047056,3016.1,3015.6,1.17863885]
[1769623945804,0.14432426,3016.2,3015.6,1.17863885]
[1769623946304,0.14432426,3016.2,3015.6,0.12088178]
[1769623946505,0.14730728,3016.2,3015.6,0.12088178]
[1769623946706,0.00298302,3016.2,3015.6,1.17863885]
[1769623946914,0.00017878,3016.2,3015.8,1.17910568]
[1769623947315,0.14191004,3016.7,3016.1,0.12134861]
[1769623947509,0.14191004,3017.0,3016.2,1.17910568]
[1769623947715,4.03851832,3016.9,3016.2,0.12134861]
[1769623947914,4.03851832,3016.8,3016.2,0.12134861]
[1769623948220,0.43025463,3016.7,3016.2,0.12134861]
[1769623948520,0.14191004,3017.0,3016.2,0.12134861]
[1769623948818,4.17800606,3016.9,3016.2,0.12134861]
[1769623949019,4.03609602,3016.8,3016.2,0.12134861]
[1769623949221,0.14436082,3016.9,3016.2,0.12134861]
[1769623949519,0.14436082,3016.9,3016.2,1.17910568]
[1769623949720,0.00245078,3016.9,3016.5,0.12008735]
[1769623950516,0.14191004,3017.3,3016.6,1.05775707]
[1769623950711,3.60219093,3017.2,3016.5,0.12008735]
[1769623951019,0.14191004,3017.3,3016.5,0.12008735]
[1769623951221,0.14191004,3017.6,3016.5,0.12008735]
[1769623951514,0.14191004,3017.4,3016.5,0.12008735]
[1769623953920,0.14191004,3017.4,3016.6,1.05775707]
[1769623954123,0.14191004,3017.4,3016.6,1.17661622]
[1769623954826,0.14191004,3017.4,3016.7,0.11885915]
[1769623955032,3.59575178,3017.3,3016.7,0.11885915]
[1769623955216,0.14191004,3017.4,3016.7,0.11885915]
[1769623955413,3.5945168,3017.3,3016.7,0.11885915]
[1769623955716,0.14191004,3017.4,3016.8,1.05775707]
[1769623956026,0.14191004,3018.1,3017.1,1.05775707]
[1769623956321,0.14191004,3017.9,3016.9,1.17703648]
[1769623956522,0.14191004,3017.9,3017.3,1.05775707]
[1769623956712,6.16518705,3018.6,3017.3,1.05775707]
[1769623956913,0.14191004,3018.4,3017.3,1.060155]
[1769623957119,0.14191004,3018.2,3017.3,1.060155]
[1769623957318,3.73375368,3018.1,3017.3,1.060155]
[1769623957524,3.59184364,3018.0,3017.3,1.060155]
[1769623957725,0.14191004,3018.5,3017.7,1.05775707]
[1769623957922,3.70832505,3018.4,3017.7,1.05775707]
[1769623958128,0.14191004,3018.4,3017.7,1.05775707]
[1769623958316,0.14191004,3018.4,3017.6,0.11921644]
[1769623958718,0.14191004,3018.4,3017.5,1.05775707]
[1769623958929,0.14191004,3018.4,3017.3,1.17935311]
[1769623959422,0.14191004,3018.4,3017.5,1.17643992]
[1769623960526,0.14191004,3018.4,3017.6,0.11866497]
[1769623961416,1.19966711,3018.4,3017.3,0.00239793]
[1769623961616,0.14191004,3018.3,3017.3,0.00239793]
[1769623963226,0.14191004,3018.3,3017.3,0.12736032]
[1769623964224,0.14191004,3018.3,3017.3,0.00239793]
[1769623964619,0.14191004,3018.3,3017.6,1.05775707]
[1769623964924,0.14191004,3018.3,3017.4,0.124945]
[1769623964925,0.14191004,3018.3,3017.4,1.18270207]
[1769623965830,0.14191004,3018.3,3017.5,0.12817517]
[1769623966428,0.14191004,3018.3,3017.4,1.05775707]
[1769623966630,0.14191004,3018.3,3017.3,0.00239793]
[1769623966825,0.14191004,3018.3,3017.4,1.18593224]
[1769623967228,0.14191004,3018.3,3017.5,0.12787336]
[1769623968926,0.14191004,3018.3,3017.8,1.05775707]
[1769623969230,0.14603114,3018.6,3018.0,1.05775707]
[1769623969925,0.0041211,3018.6,3018.0,1.18571977]
[1769623970331,0.0041211,3018.6,3018.0,0.1279627]
[1769623972533,0.14191004,3018.5,3017.6,0.12756645]
[1769623972922,0.14191004,3018.3,3017.3,0.12996438]
[1769623975433,0.14191004,3018.3,3017.5,0.12698682]
[1769623975629,1.1973874,3018.6,3017.5,0.12698682]
[1769623975935,0.13550923,3018.5,3017.5,0.12698682]
[1769623977229,3.56861112,3018.4,3017.5,0.12698682]
[1769623977432,0.13550923,3018.4,3017.5,0.12698682]
[1769623978132,1.1932663,3018.2,3017.3,0.00239793]
[1769623978328,1.1932663,3018.2,3017.3,0.12941453]
[1769623978528,0.13550923,3018.2,3017.3,0.12941453]
[1769623980735,0.13550923,3018.5,3017.5,0.12819064]
[1769623981035,3.57341107,3018.4,3017.6,1.18604808]
[1769623981234,3.57341107,3018.3,3017.6,0.12829101]
[1769623981434,3.57341107,3018.2,3017.6,0.12829101]
[1769623981638,0.13550923,3018.4,3017.6,0.12829101]
[1769623981937,3.574847,3018.3,3017.6,0.12829101]
[1769623982138,0.0041211,3018.6,3017.6,0.12829101]
[1769623982339,3.57598711,3018.5,3017.6,0.12829101]
[1769623982637,3.71149634,3018.4,3017.5,0.1282769]
[1769623982939,0.0041211,3018.6,3017.5,0.1282769]
[1769623983125,3.57619265,3018.5,3017.5,0.1282769]
[1769623983326,3.57619265,3018.4,3017.5,0.1282769]
[1769623983535,3.57619265,3018.3,3017.6,0.29513475]
[1769623983837,0.0041211,3018.6,3017.7,0.12922475]
[1769623984037,3.5779381,3018.5,3017.7,0.12922475]
[1769623984337,3.5779381,3018.4,3017.7,0.12922475]
[1769623984534,0.0041211,3018.6,3017.7,0.12922475]
[1769623984535,3.5779381,3018.3,3017.7,0.12922475]
[1769623984735,0.0041211,3018.6,3017.7,0.29513475]
[1769623984928,3.58000291,3018.5,3017.8,0.12921093]
[1769623985124,3.58000291,3018.4,3017.8,0.12921093]
[1769623985436,1.23818344,3019.1,3018.1,0.00327029]
[1769623986440,1.24225738,3019.1,3018.1,0.00327029]
[1769623986635,0.14764476,3019.0,3018.1,0.00327029]
[1769623987441,1.24225738,3019.1,3018.4,0.03897084]
[1769623987934,1.24225738,3019.1,3018.5,0.03897084]
[1769623988744,1.24225738,3019.1,3018.4,0.16587]
[1769623988936,1.24225738,3019.1,3018.5,0.03720934]
[1769623989338,1.20504804,3019.1,3018.6,0.03720934]
[1769623989539,1.20504804,3019.1,3018.6,0.16586]
[1769623991539,0.16294824,3020.1,3018.8,0.16585]
[1769623991845,0.16294824,3019.9,3018.8,0.16585]
[1769623992551,0.16637613,3019.9,3018.8,0.16585]
[1769623992844,0.16637613,3019.9,3018.9,0.02529323]
[1769623993041,0.00342789,3019.9,3018.9,0.02529323]
[1769623993241,0.84889804,3019.8,3019.2,0.02529323]
[1769623994145,1.0094333,3019.8,3019.1,0.16583]
[1769623994347,0.16053526,3019.7,3018.9,0.02391113]
[1769623994740,0.84889804,3019.6,3018.9,0.02391113]
[1769623994942,1.0094333,3019.8,3018.9,0.02391113]
[1769623996350,0.15833895,3019.7,3018.9,0.1918375]
[1769623997845,0.15833895,3019.7,3018.9,0.16584]
[1769623998051,0.16471193,3019.5,3018.6,0.01229925]
[1769623999152,0.84889804,3019.4,3018.9,0.16584]
[1769623999345,0.84889804,3019.4,3018.9,0.17350979]
[1769623999654,0.84889804,3019.4,3019.0,0.00766979]
[1769623999852,0.84889804,3019.4,3018.9,0.17350979]
[1769624000053,0.68305804,3019.4,3018.9,0.17350979]
[1769624001658,0.84873137,3019.4,3018.9,0.16584]
[1769624003462,0.68305804,3019.4,3019.0,0.16584]
[1769624003671,0.16897413,3019.9,3019.2,0.01019519]
[1769624005069,0.68305804,3019.8,3019.2,0.01019519]
[1769624006171,0.68305804,3019.8,3019.1,0.16583]
[1769624006656,0.68305804,3019.8,3019.1,0.17471135]
[1769624006860,0.16454229,3019.7,3019.1,0.16583]
[1769624007065,0.16454229,3019.7,3018.8,1.945]
[1769624007268,0.85045696,3019.6,3018.8,1.945]
[1769624007467,0.16739892,3019.6,3018.8,1.945]
[1769624007658,0.16739892,3019.6,3018.8,1.95307624]
[1769624008258,0.16739892,3019.6,3019.1,0.16583]
[1769624008864,0.16739892,3019.4,3018.6,0.16586]
[1769624009269,0.68305804,3019.3,3018.7,0.00775599]
[1769624009462,0.16739892,3019.5,3018.8,0.00775599]
[1769624009667,0.16739892,3019.5,3018.7,0.16585]
[1769624010074,0.16739892,3019.3,3018.7,0.16585]
[1769624010570,0.85045696,3019.2,3018.3,0.00643404]
[1769624010770,0.16739892,3019.2,3018.3,1.95143404]
[1769624011268,0.16739892,3019.2,3018.4,0.00523782]
[1769624012375,0.16739892,3019.2,3018.7,0.16585]
[1769624012973,0.16739892,3019.2,3018.2,0.17458332]
[1769624013270,0.16739892,3019.0,3018.2,0.16588]
[1769624014068,0.85045696,3018.9,3018.2,0.16588]
[1769624014274,0.16739892,3018.9,3018.2,0.16588]
[1769624014967,0.68305804,3018.8,3018.2,0.16588]
[1769624015173,0.16739892,3018.7,3018.2,0.16588]
[1769624015374,0.16739892,3018.7,3017.9,1.945]
[1769624015574,0.16739892,3018.5,3017.9,1.945]
[1769624016174,0.16739892,3018.5,3018.2,0.16588]
[1769624016775,0.85045696,3018.4,3017.9,1.945]
[1769624016969,0.16739892,3018.4,3017.9,1.945]
[1769624017478,0.85045696,3018.3,3017.9,1.945]
[1769624017679,0.16739892,3018.3,3017.9,1.945]
[1769624017973,1.05595075,3019.2,3017.6,3.48191]
[1769624017974,0.85045696,3018.2,3017.6,3.48191]
[1769624018166,0.16739892,3018.5,3017.6,3.63496196]
[1769624018369,0.16739892,3018.5,3017.7,0.31896196]
[1769624020284,0.16739892,3018.5,3017.6,3.316]
[1769624020285,0.16739892,3019.1,3017.9,0.15305196]
[1769624020477,0.16739892,3019.1,3018.2,0.15305196]
[1769624020776,0.16739892,3019.1,3018.3,2.09805196]
[1769624024181,0.16739892,3019.1,3018.2,1.945]
[1769624028874,0.16739892,3019.1,3018.2,2.09805196]
[1769624029078,0.16739892,3019.1,3018.3,0.15305196]
[1769624030687,0.16739892,3019.1,3018.1,0.31894196]
[1769624032187,0.16739892,3019.1,3018.2,0.15305196]
[1769624032386,0.16739892,3019.1,3018.3,0.15305196]
[1769624036090,0.16739892,3019.1,3018.2,0.16588]
[1769624036686,0.16739892,3019.1,3018.2,0.32132387]
[1769624038794,0.16739892,3019.1,3018.3,0.15544387]
[1769624040495,0.16921789,3019.9,3018.3,0.15544387]
[1769624040697,0.15461305,3019.8,3018.3,0.15544387]
[1769624041499,0.15461305,3019.8,3018.4,0.15544387]
[1769624042391,0.15461305,3019.8,3018.5,0.15544387]
[1769624042697,0.15461305,3019.8,3018.6,0.15544387]
[1769624043488,0.15461305,3019.8,3018.9,0.15544387]
[1769624043693,0.15461305,3019.8,3019.1,0.15544387]
[1769624043993,0.00342789,3019.9,3019.1,0.15544387]
[1769624044897,0.00342789,3019.9,3019.2,1.05474375]
[1769624045502,0.00342789,3019.9,3019.2,1.21018762]
[1769624045699,0.00342789,3019.9,3019.3,0.15544387]
[1769624046003,0.15461305,3020.1,3019.4,1.05474375]
[1769624046405,0.15461305,3020.3,3019.5,0.15544387]
[1769624046802,0.15705239,3020.3,3019.5,0.1586564]
[1769624047406,0.00243934,3020.3,3019.7,0.15544387]
[1769624047606,2.0,3020.4,3019.7,0.15544387]
[1769624048707,2.0,3020.4,3019.0,0.15544387]
[1769624048708,0.15461305,3019.7,3019.0,0.15544387]
[1769624048901,1.05474375,3019.6,3019.0,2.10044387]
[1769624049101,0.15461305,3019.7,3019.0,2.10044387]
[1769624049301,0.15461305,3019.5,3018.7,0.32129387]
[1769624049512,0.15461305,3019.4,3018.5,0.16586]
[1769624049704,0.15461305,3019.4,3018.5,2.11086]
[1769624049903,0.15461305,3019.4,3018.5,0.00257842]
[1769624052309,0.15461305,3019.4,3018.5,0.15802229]
[1769624052509,0.15461305,3019.9,3019.1,1.21018762]
[1769624053708,0.15461305,3019.9,3019.1,0.15544387]
[1769624054606,0.15461305,3019.9,3019.0,1.945]
[1769624057019,0.15461305,3019.9,3019.0,2.10044387]
[1769624057321,0.15461305,3019.9,3019.1,0.15544387]
[1769624059930,0.15461305,3020.3,3019.1,0.15544387]
[1769624064430,0.15461305,3020.3,3019.0,1.945]
[1769624065230,0.15461305,3020.3,3019.1,0.13592963]
[1769624065427,0.15461305,3020.3,3019.2,0.13592963]
[1769624065625,2.00373007,3020.4,3019.5,0.13592963]
[1769624066223,2.14981334,3020.4,3019.5,0.13592963]
[1769624069534,2.00373007,3020.4,3019.5,0.13592963]
[1769624071223,2.00373007,3020.4,3019.7,0.13747474]
[1769624074035,0.1425445,3020.3,3019.6,0.1658]
[1769624074430,0.1425445,3020.3,3019.4,0.13747474]
[1769624074641,0.1425445,3020.3,3019.2,6.05011215]
[1769624074832,0.1425445,3020.3,3019.0,6.07846741]
[1769624075138,0.1425445,3020.3,3019.0,0.16583]
[1769624075532,0.1425445,3020.1,3019.0,0.16583]
[1769624077041,0.1425445,3019.9,3019.0,0.16583]
[1769624077334,0.1425445,3020.3,3019.3,1.05487299]
[1769624077643,0.1425445,3020.3,3019.3,0.13747474]
[1769624081541,0.1425445,3020.3,3019.2,0.30329474]
[1769624082441,0.1425445,3020.3,3019.3,0.13747474]
[1769624082740,0.1425445,3020.3,3019.2,0.16582]
[1769624083140,0.1425445,3020.3,3019.2,0.30329474]
[1769624083436,0.1425445,3020.3,3019.3,0.13747474]
[1769624088735,0.1425445,3020.3,3019.2,0.16582]
[1769624089336,0.1425445,3020.3,3019.3,0.13747474]
[1769624091639,0.1425445,3020.3,3019.2,0.16582]
[1769624092347,0.1425445,3020.3,3019.2,0.30329474]
[1769624093850,0.1425445,3020.3,3019.2,0.16582]
[1769624094851,0.1425445,3020.3,3019.2,0.31307838]
[1769624097553,0.1425445,3020.3,3019.0,5.91263741]
[1769624097951,0.1425445,3020.3,3018.9,6.05989579]
[1769624098151,0.1425445,3020.3,3019.0,0.14725838]
[1769624099460,0.1425445,3020.3,3019.1,0.14725838]
[1769624099654,0.1425445,3020.3,3019.7,1.05433608]
[1769624100342,0.1425445,3020.3,3019.3,1.05433608]
[1769624100542,0.1425445,3020.3,3019.0,6.05989579]
[1769624100747,0.13493841,3020.1,3019.0,0.14725838]
[1769624100946,0.13493841,3020.1,3018.9,6.96697349]
[1769624100947,0.13493841,3020.1,3019.2,0.14725838]
[1769624101151,0.13493841,3020.1,3019.3,1.20159446]
[1769624101651,0.13493841,3020.1,3019.0,0.14725838]
[1769624102747,2.13866848,3020.4,3019.1,0.14725838]
[1769624103047,0.13493841,3020.3,3019.1,0.14725838]
[1769624104859,0.13493841,3020.3,3019.2,0.14725838]
[1769624106659,0.13493841,3020.3,3019.1,0.16583]
[1769624107862,0.13493841,3020.3,3019.1,0.31308838]
[1769624108954,0.13493841,3020.3,3019.1,0.16583]
[1769624112055,0.13493841,3020.3,3019.2,0.14725838]
[1769624112556,2.00373007,3020.4,3019.3,0.14725838]
[1769624112756,2.00373007,3020.4,3019.4,0.14725838]
[1769624115262,2.00373007,3020.4,3019.5,0.14725838]
[1769624115864,2.00373007,3020.4,3019.7,0.14725838]
[1769624117954,0.13493841,3021.0,3019.9,0.14725838]
[1769624118962,0.13857642,3021.0,3019.9,0.14725838]
[1769624120664,0.13857642,3021.0,3019.9,0.31304838]
[1769624120867,0.13857642,3021.0,3020.0,0.14725838]
[1769624121063,0.00363801,3021.0,3020.1,0.14725838]
[1769624123666,0.00363801,3021.0,3020.3,0.14725838]
[1769624123869,0.13493841,3022.1,3020.8,0.14725838]
[1769624124769,0.13915097,3022.1,3020.8,0.15095421]
[1769624128470,0.13915097,3022.1,3020.8,0.00369583]
[1769624130975,0.13915097,3022.1,3020.8,0.14550964]
[1769624136572,0.13915097,3022.1,3020.8,0.00369583]
[1769624136969,0.14043535,3021.7,3019.9,0.30760381]
[1769624137175,0.14043535,3021.7,3020.0,0.14181381]
[1769624137983,0.14043535,3021.7,3020.0,0.14487525]
[1769624140681,0.30612535,3021.7,3020.0,0.14487525]
[1769624140872,0.14043535,3021.6,3020.0,0.14487525]
[1769624144079,0.14043535,3021.6,3020.1,0.14181381]
[1769624144685,0.14043535,3021.6,3020.2,0.14181381]
[1769624145582,0.14043535,3022.0,3020.2,0.14181381]
[1769624145785,0.14043535,3021.8,3020.2,0.14181381]
[1769624148085,0.14043535,3021.6,3020.2,0.14181381]
[1769624150389,0.14043535,3021.6,3020.0,0.14487525]
[1769624153183,0.14043535,3021.5,3020.0,0.14487525]
[1769624153384,0.14043535,3021.5,3020.2,0.14181381]
[1769624154590,0.14043535,3021.5,3020.3,0.14181381]
[1769624155089,0.14215147,3021.8,3020.3,0.14181381]
[1769624156293,0.14215147,3021.8,3020.4,0.14320972]
[1769624156789,0.14215147,3021.8,3020.5,0.14320972]
[1769624159891,0.14215147,3021.8,3020.3,0.14320972]
[1769624161793,0.14215147,3021.5,3020.0,0.14627116]
[1769624163392,0.14215147,3021.5,3020.3,0.14320972]
[1769624163992,0.14215147,3021.7,3020.4,0.14288983]
[1769624165191,0.14215147,3021.7,3020.4,0.30864983]